Cogmind - Beta 10.2 @@@ ROGUE MODE // 2021.08.15 @ 19:27:55 Player: Luigi Panache Result: Destroyed by G-47 Trooper with Particle Gun Performance ------------- Evolutions (2) 1000 Regions Visited (5) 1000 Robots Destroyed (93) 465 Value Destroyed (2289) 2289 Prototype IDs (31) 620 Alien Tech Used (0) 0 Bonus (794) 794 TOTAL SCORE: 6168 Bonus ------- High Alert Combat Kills 494 Aligned with FarCom 300 Cogmind --------- Core Integrity 0/550 Matter 300/300 Energy 100/100 System Corruption 1% Temperature Cool (9) Movement Walking (150) Ox1 Location -8/Materials Parts ------- > --- POWER (1) -------- (None) > --- PROPULSION (3) --- Aluminum Leg Carbon-fiber Leg Carbon-fiber Leg > --- UTILITY (5) ------ Large Storage Unit High-capacity Storage Unit Heavy Armor Plating > --- WEAPON (2) ------- Katana > --- INVENTORY (18) --- Light Nuclear Core Improved Flight Unit Improved Flight Unit Improved VTOL Module Small Storage Unit Medium Matter Pod (100) Structural Scanner Advanced Visual Processing Unit Advanced Sensor Array Improved Light Armor Plating Hacking Suite Thief Drone Bay (3/3) Slug Cannon Mini Grenade Launcher Peak State ------------ > --- POWER ------------ Nuclear Core > --- PROPULSION ------- Light Treads Light Treads Light Treads > --- UTILITY ---------- Large Storage Unit High-capacity Storage Unit Advanced Sensor Array Improved Targeting Computer Hardened Medium Armor Plating > --- WEAPON ----------- Heavy EM Shotgun Katana > --- INVENTORY -------- Light Nuclear Core Light Treads Improved Flight Unit Improved Flight Unit Improved VTOL Module Small Storage Unit Medium Matter Pod Structural Scanner Advanced Visual Processing Unit Advanced Sensor Array Improved Light Armor Plating Hacking Suite Thief Drone Bay Heavy EM Shotgun Heavy EM Shotgun Slug Cannon Mini Grenade Launcher Mini Grenade Launcher [Rating: 28] Favorites ----------- Power Light Ion Engine Engine Light Ion Engine Power Core Nuclear Core Propulsion Light Treads Treads Light Treads Leg Carbon-fiber Leg Wheel Wheel Flight Unit Improved Flight Unit Utility Large Storage Unit Device Advanced Sensor Array Storage Large Storage Unit Processor Improved Targeting Computer Protection Hardened Medium Armor Plating Weapon EM Pulse Gun Energy Gun EM Pulse Gun Ballistic Gun Assault Rifle Ballistic Cannon Slug Cannon Launcher Mini Grenade Launcher Slashing Weapon Katana Build | -11 -10 -10 -10 -9 -8 ------- Run | Scr Mat Min Exi Min Mat Slots Evolved 4 | . . . . . 4 Power . | . . . . . . Propulsion 1 | . . . . . 1 Utility 3 | . . . . . 3 Weapon . | . . . . . . Parts Attached 70 | 7 13 1 4 5 40 Power 4 | 1 2 . . . 1 Engine 3 | 1 2 . . . . Core 1 | . . . . . 1 Reactor . | . . . . . . Propulsion 25 | 2 1 . 2 2 18 Treads 15 | 2 1 . . . 12 Leg 3 | . . . . . 3 Wheel 5 | . . . 2 2 1 Hover . | . . . . . . Flight 2 | . . . . . 2 Utility 13 | 2 3 . 2 . 6 Device 3 | . . . . . 3 Storage 7 | 2 3 . 2 . . Processor 1 | . . . . . 1 Hackware . | . . . . . . Protection 2 | . . . . . 2 Artifact . | . . . . . . Weapon 28 | 2 7 1 . 3 15 Energy Gun 15 | . 7 . . 1 7 Energy Cannon . | . . . . . . Ballistic Gun 5 | 2 . . . 1 2 Ballistic Cannon 1 | . . . . . 1 Launcher 5 | . . 1 . 1 3 Special Weapon . | . . . . . . Impact Weapon . | . . . . . . Slashing Weapon 2 | . . . . . 2 Piercing Weapon . | . . . . . . Special Melee Weapon . | . . . . . . Unidentified Prototypes 6 | . . . . . 6 Parts Lost 20 | . 3 . . 2 15 Power 2 | . 1 . . . 1 Propulsion 5 | . . . . . 5 Utility 4 | . . . . . 4 Weapon 9 | . 2 . . 2 5 Highest Loss Streak 12 | . 2 . . 2 12 Average Slot Usage (%) 93 | . 99 100 99 98 79 Engine 9 | . 13 14 14 14 . Core 2 | . . . . . 6 Treads 24 | . 28 28 26 . 19 Leg 1 | . . . . . 4 Wheel 1 | . . . 1 28 1 Device 1 | . . . . . 4 Storage 24 | . 28 28 27 28 18 Processor 2 | . . . . . 6 Protection 1 | . . . . . 3 Energy Gun 17 | . 25 24 14 3 7 Ballistic Gun 1 | . 2 . . 10 1 Launcher 4 | . . 3 14 12 5 Naked Turns . | . . . . . . Heaviest Build 71 | 14 59 55 54 55 71 Greatest Support 60 | 40 40 40 40 32 60 Greatest Overweight (x) 20 | . 1 1 1 2 20 Average Overweight (x) . | . . 1 . 1 . Largest Inventory Capacity 18 | 8 18 18 18 18 18 Average Capacity 16 | 6 16 18 17 18 18 Most Carried 18 | 7 18 18 18 18 18 Average Carried 16 | 4 15 17 17 17 17 Final Capacity 18 | 8 18 18 18 18 18 Final Carried 18 | 7 18 18 18 18 14 Class Distribution -------------------- 100% | Mutant Dominant Class ---------------- Mutant | -10/Materials Mutant | -10/Mines Mutant | -10/Exiles Mutant | -9/Mines Mutant | -8/Materials Resources | -11 -10 -10 -10 -9 -8 ----------- Run | Scr Mat Min Exi Min Mat Matter Collected 1386 | 317 120 10 . 30 909 Remotely . | . . . . . . Salvage Created 2789 | 224 668 76 . 67 1754 Parts 183 | 20 46 9 . 8 100 Haulers Intercepted 4 | . 2 . . . 2 Recyclers Shooed 4 | . 1 1 . . 2 Parts Field Recycled . | . . . . . . Retrieved Matter . | . . . . . . Parts Self-Destructed . | . . . . . . Prevented . | . . . . . . Kills | -11 -10 -10 -10 -9 -8 ------- Run | Scr Mat Min Exi Min Mat Combat Hostiles Destroyed 60 | . 12 6 . 3 39 Melee 3 | . . . . . 3 Guns 21 | . 7 3 . 1 10 Cannons 1 | . . . . . 1 AOE 34 | . 5 3 . 2 24 Classes Destroyed 12 | 3 6 . . 1 2 Worker 8 | 2 . 1 . 1 4 Builder 3 | . 1 . . . 2 Tunneler 4 | 4 . . . . . Hauler 4 | . 2 . . . 2 Recycler 5 | 1 2 . . . 2 Mechanic 2 | . . . . . 2 Operator 3 | . 1 . . . 2 Watcher 4 | . 2 . . . 2 Swarmer 21 | . 6 6 . . 9 Grunt 33 | . 6 . . 2 25 Brawler 2 | . . . . 1 1 Sentry 4 | . . . . . 4 Best Kill Streak 10 | 5 5 4 . 4 10 Combat Bots Only 8 | . 3 3 . 3 8 Max Kills in Single Turn 4 | 1 3 2 . 1 4 Gunslinging 1 | . . 1 . . . Exploded 4 | . 3 2 . 1 4 Melee 1 | . . . . . 1 Uniques/NPCs Destroyed . | . . . . . . Combat | -11 -10 -10 -10 -9 -8 -------- Run | Scr Mat Min Exi Min Mat Damage Taken 3491 | . 335 106 30 130 2890 Core 666 | . 47 20 15 32 552 Absorbed by Shields . | . . . . . . Core Remaining (%) 77 | 100 . . . 54 . Volleys Fired 168 | 12 42 6 2 12 94 Largest 2 | 2 2 2 1 2 2 Hottest 100 | 40 90 80 30 80 100 Shots Fired 237 | 23 80 10 2 14 108 Gun 198 | 23 80 8 . 6 81 Cannon 1 | . . . . . 1 Launcher 38 | . . 2 2 8 26 Special . | . . . . . . Kinetic 33 | 23 . . . 2 8 Thermal . | . . . . . . Explosive 38 | . . 2 2 8 26 Electromagnetic 166 | . 80 8 . 4 74 Robot Hit Streak 28 | 7 10 5 . 5 28 Robot Miss Streak 4 | 2 4 1 . 2 3 Penetration Max . | . . . . . . Secondary Targets 4 | . 2 2 . . . Max Gunslinging Chain 1 | . 1 1 . . . Shots Hit Robots 176 | 13 47 7 . 7 102 Core Hits 149 | 9 22 8 . 8 102 Critical Hits . | . . . . . . Critical Kills . | . . . . . . Critical Parts Destroyed . | . . . . . . Melee Attacks 16 | . . . . . 16 Impact . | . . . . . . Slashing 16 | . . . . . 16 Piercing . | . . . . . . Sneak Attacks 2 | . . . . . 2 Combat Hostiles . | . . . . . . Follow-up Attacks . | . . . . . . Damage Inflicted 7308 | 163 1041 243 . 545 5316 Guns 2408 | 163 761 76 . 45 1363 Cannons 31 | . . . . . 31 Explosions 4279 | . 254 149 . 500 3376 Melee 536 | . . . . . 536 Ramming 54 | . 26 18 . . 10 Kinetic 345 | 163 . . . 32 150 Thermal 1015 | . 184 . . . 831 Explosive 3194 | . . 149 . 500 2545 Electromagnetic 2164 | . 831 76 . 13 1244 Impact . | . . . . . . Slashing 536 | . . . . . 536 Piercing . | . . . . . . Highest Corruption 1 | . . . . . 1 Average Corruption 1 | . . . . . 1 Corruption Purged . | . . . . . . Effects 1 | . . . . . 1 Data Loss (minor) 1 | . . . . . 1 Overload Shots . | . . . . . . Overflow Damage 325 | . 5 . . 4 316 Projectiles . | . . . . . . Explosions 245 | . 5 . . 4 236 Melee 80 | . . . . . 80 Knockbacks . | . . . . . . Impact . | . . . . . . Kinetic . | . . . . . . Secondary . | . . . . . . Self-Inflicted Damage 739 | . 102 . 30 87 520 Shots 20 | . 4 . 1 3 12 Rammed 6 | . 2 2 . . 2 Targets Rammed 7 | . 2 2 . . 3 Kicked 1 | . . . . . 1 Crushed . | . . . . . . Highest Temperature 344 | . 192 72 . 54 344 Average Temperature 71 | . 53 38 . 22 99 Received Heat Transfer 1101 | . 78 . . 24 999 Effects 2 | . . . . . 2 Interference 2 | . . . . . 2 Siege Activations . | . . . . . . Robots Corrupted 1 | . . . . . 1 Combat Hostiles 1 | . . . . . 1 Parts Fried 14 | . 6 . . . 8 Impact Corruptions . | . . . . . . Robots Melted . | . . . . . . Combat Hostiles . | . . . . . . Parts Melted 1 | . . . . . 1 Heat Transferred 1050 | . 300 . . . 750 Parts Sabotaged . | . . . . . . Parts Stolen . | . . . . . . Parts Stripped . | . . . . . . Power Chain Reactions 9 | . 3 . . . 6 Missiles Intercepted . | . . . . . . Alert | -11 -10 -10 -10 -9 -8 ------- Run | Scr Mat Min Exi Min Mat Peak Influence 1063 | 35 225 203 . 65 1063 Initial 58 | . 22 58 . . 25 Average 278 | 17 108 112 . 55 615 Maximum Alert Level 3 | . 1 1 . . 3 Low Security (%) 66 | 100 91 93 . 100 15 Level 1 6 | . 8 6 . . 6 Level 2 10 | . . . . . 29 Level 3 17 | . . . . . 48 Level 4 . | . . . . . . Level 5 . | . . . . . . High Security . | . . . . . . Max Security . | . . . . . . Squads Dispatched 12 | . 4 . . . 8 Investigation 5 | . 3 . . . 2 Extermination . | . . . . . . Reinforcement 4 | . 1 . . . 3 Assault 2 | . . . . . 2 Garrison 1 | . . . . . 1 Intercept . | . . . . . . Construction Impeded 1 | . . . . . 1 Haulers Reinforced . | . . . . . . Stealth | -11 -10 -10 -10 -9 -8 --------- Run | Scr Mat Min Exi Min Mat Distress Signals 2 | . 1 . . . 1 Communications Jammed . | . . . . . . Distress Signals . | . . . . . . Times Spotted 102 | . 25 5 . 3 69 Peak Tracking Total 9 | . 4 3 9 3 9 Tactical Retreats 14 | . 7 . . . 7 Traps | -11 -10 -10 -10 -9 -8 ------- Run | Scr Mat Min Exi Min Mat Traps Triggered 3 | . 3 . . . . Indirectly . | . . . . . . Trap Hack Attempts . | . . . . . . Triggered . | . . . . . . Disarmed . | . . . . . . Reprogrammed . | . . . . . . Reused . | . . . . . . Traps Extracted . | . . . . . . Installed . | . . . . . . Triggered . | . . . . . . Machines | -11 -10 -10 -10 -9 -8 ---------- Run | Scr Mat Min Exi Min Mat Machines Disabled 9 | . 4 . 1 . 4 Max in Single Turn 3 | . 3 . 1 . 1 Garrison Access 1 | . . . . . 1 Machines Sabotaged . | . . . . . . Garrisons Compromised . | . . . . . . Overloaded Fab Kills . | . . . . . . Fab Network Shutdowns . | . . . . . . Hacking | -11 -10 -10 -10 -9 -8 --------- Run | Scr Mat Min Exi Min Mat Machines Accessed 13 | . 6 . 2 1 4 Terminals 6 | . 4 . . . 2 Fabricators . | . . . . . . Repair Stations 1 | . 1 . . . . Recycling Units 2 | . 1 . . . 1 Scanalyzers . | . . . . . . Garrison Access 1 | . . . . . 1 Total Hacks 23 | . 12 . 2 1 8 Successful 12 | . 4 . 2 1 5 Failed 11 | . 8 . . . 3 Catastrophic 3 | . 1 . . . 2 Database Lockouts . | . . . . . . Manual 14 | . 7 . 1 . 6 Terminals 16 | . 10 . . . 6 Fabricators . | . . . . . . Repair Stations 1 | . 1 . . . . Recycling Units 2 | . 1 . . . 1 Scanalyzers . | . . . . . . Garrison Access 1 | . . . . . 1 Terminal Hacks 7 | . 3 . 2 1 1 Record 1 | . . . 1 . . Part Schematic 2 | . 2 . . . . Prototype ID Bank 1 | . 1 . . . . Open Door 1 | . . . . 1 . Hauler Manifests 1 | . . . . . 1 EX-Prototype ID Bank 1 | . . . 1 . . Fabricator Hacks . | . . . . . . Repair Station Hacks . | . . . . . . Recycling Unit Hacks . | . . . . . . Scanalyzer . | . . . . . . Garrison Access Hacks 1 | . . . . . 1 Seal Access 1 | . . . . . 1 Unauthorized Hacks 4 | . 1 . . . 3 Terminals 2 | . . . . . 2 Botnet 1 | . . . . . 1 Operators 1 | . . . . . 1 Fabricators . | . . . . . . Repair Stations . | . . . . . . Recycling Units 2 | . 1 . . . 1 Tunnel 2 | . 1 . . . 1 Scanalyzers . | . . . . . . Garrison Access . | . . . . . . Data Cores Recovered . | . . . . . . Used . | . . . . . . Hacking Detections 5 | . 3 . . . 2 Full Trace Events 2 | . 1 . . . 1 Feedback Events . | . . . . . . Feedback Blocked . | . . . . . . Robot Schematics Acquired . | . . . . . . Robots Built . | . . . . . . Matter . | . . . . . . Time . | . . . . . . Total Robot Build Rating . | . . . . . . Part Schematics Acquired 2 | . 2 . . . . Parts Built . | . . . . . . Matter . | . . . . . . Time . | . . . . . . Total Part Build Rating . | . . . . . . Parts Repaired . | . . . . . . Time . | . . . . . . Parts Recycled . | . . . . . . Recycled Matter . | . . . . . . Retrieved Matter . | . . . . . . Retrieved Components . | . . . . . . Parts Scanalyzed . | . . . . . . Part Schematics Acquired . | . . . . . . Parts Damaged . | . . . . . . Bothacking | -11 -10 -10 -10 -9 -8 ------------ Run | Scr Mat Min Exi Min Mat Used RIF Installer . | . . . . . . Robots Hacked . | . . . . . . Non-combat . | . . . . . . Combat . | . . . . . . Robot Hacks Applied . | . . . . . . Relay Couplers Released 2 | . . . . . 2 Machine Destruction 2 | . . . . . 2 Robots Rewired . | . . . . . . Allies Hacked . | . . . . . . Hacks Repelled . | . . . . . . Allies | -11 -10 -10 -10 -9 -8 -------- Run | Scr Mat Min Exi Min Mat Total Allies . | . . . . . . Largest Group . | . . . . . . Highest-Rated Group . | . . . . . . Highest-Rated Ally . | . . . . . . Total Orders . | . . . . . . Ally Attacks . | . . . . . . Total Damage . | . . . . . . Kills . | . . . . . . Allies Corrupted . | . . . . . . Allies Melted . | . . . . . . Intel | -11 -10 -10 -10 -9 -8 ------- Run | Scr Mat Min Exi Min Mat Robot Analysis Total . | . . . . . . Derelict Logs Recovered . | . . . . . . Drone Launches . | . . . . . . Drone Recoveries . | . . . . . . Exploration | -11 -10 -10 -10 -9 -8 ------------- Run | Scr Mat Min Exi Min Mat Turns Passed 3815 | 195 1345 473 541 121 1140 Spaces Moved 1855 | 94 667 251 302 87 454 Core 9 | 7 . . . . 2 Treads 1619 | 87 667 251 275 . 339 Legs 71 | . . . . . 71 Wheels 156 | . . . 27 87 42 Hover . | . . . . . . Flight . | . . . . . . Fastest Speed 50 | 50 160 180 110 100 96 Average Speed 168 | 151 175 180 173 100 165 Slowest Speed 1050 | 160 180 180 180 110 1050 Overloaded Moves . | . . . . . . Propulsion Burnouts . | . . . . . . Robots Hopped . | . . . . . . Cave-ins Triggered 1 | . . . . . 1 Time Travels 1 | . . . 1 . . Exploration Rate (%) 44 | 4 76 65 69 16 36 Regions Visited 5 Branch Regions 3 Pre-discovered Areas 3 | . 1 . 1 . 1 Known Exits Taken . | . . . . . . Unknown Exits Taken 5 | 1 1 1 1 1 . Scrap Searched 1 | . . 1 . . . Spaces Dug . | . . . . . . Terrain Destroyed 279 | . 8 19 12 72 168 Melee . | . . . . . . Projectile . | . . . . . . AOE 279 | . 8 19 12 72 168 Terrain Rammed . | . . . . . . Walls Destroyed . | . . . . . . Machines Disabled . | . . . . . . Actions | -11 -10 -10 -10 -9 -8 --------- Run | Scr Mat Min Exi Min Mat Total 2282 | 122 762 261 317 105 715 Wait 75 | 3 9 . . . 63 Move 1850 | 93 666 250 301 86 454 Hop . | . . . . . . Pick Up 49 | 7 18 1 7 1 15 Fast Attach 33 | 7 5 . 1 . 20 Attach 15 | . 2 . . 2 11 Detach 3 | . . . . . 3 Swap 22 | . 6 1 3 3 9 Drop 44 | . 12 1 3 1 27 Fire 168 | 12 42 6 2 12 94 Melee 16 | . . . . . 16 Ram 1 | . . . . . 1 Kick 1 | . . . . . 1 Crush 5 | . 2 2 . . 1 Escape Stasis . | . . . . . . Rewire . | . . . . . . Trap . | . . . . . . Miscellaneous . | . . . . . . Route ------- -11/Scrapyard -10/Materials (discovered 3 exits: [*Mat x2] / [*Min]) -10/Mines (discovered 3 exits: [*Mat x2] / *Exi) -10/Exiles -9/Mines -8/Materials History --------- Turn | Location | Event 8 | -11/Scrapyard | Discovered new exit (range 16) 196 | -11/Scrapyard | Entered Materials 318 | -10/Materials | Build established: Mutant 509 | -10/Materials | Discovered new exit (range 12) 643 | -10/Materials | Discovered new exit (range 14) 1068 | -10/Materials | Discovered new exit (range 16) 1541 | -10/Materials | Entered Mines 1584 | -10/Mines | Discovered new exit (range 7) 1703 | -10/Mines | A weapon hastily lodged in a ceiling crevice suddenly fell to the ground 1737 | -10/Mines | Found a hidden stash of uninstalled traps 1755 | -10/Mines | Discovered new exit (range 9) 1994 | -10/Mines | Deemed a non-threat by the Exiles lab entrance 1996 | -10/Mines | Discovered new exit (range 5) 2014 | -10/Mines | Entered Exiles 2059 | -10/Exiles | Met 8R-AWN 2088 | -10/Exiles | Met EX-HEX 2205 | -10/Exiles | Met EX-DEC 2235 | -10/Exiles | Learned location of Zion (-7) 2282 | -10/Exiles | Met EX-BIN 2302 | -10/Exiles | Aligned with FarCom system 2304 | -10/Exiles | Given EX-Vault access code 2354 | -10/Exiles | Opened EX-Vault 2376 | -10/Exiles | Found Chronowheel 2376 | -10/Exiles | Activated Chronowheel 2376 | -10/Exiles | Spacetime reconverged on an earlier point 2435 | -10/Exiles | Warned to stay clear of 0b10 Research branches 2526 | -10/Exiles | Attacked by the Exiles 2546 | -10/Exiles | Discovered new exit (range 10) 2555 | -10/Exiles | Entered Mines 2607 | -9/Mines | Met a Derelict bent on vengeance 2647 | -9/Mines | Discovered new exit (range 10) 2659 | -9/Mines | Assembled infested the area 2661 | -9/Mines | Found the Drone Emporium 2665 | -9/Mines | Found Prototype Device 2676 | -9/Mines | Entered Materials 2676 | -8/Materials | Evolved 4 slots: Propulsion x1, Utility x3 2878 | -8/Materials | Destroyed 7 combat bots 3035 | -8/Materials | Identified Thief Drone Bay 3366 | -8/Materials | Garrison activated, responded to threat 3476 | -8/Materials | First assault squad dispatched 3587 | -8/Materials | Crushed by falling debris 3587 | -8/Materials | Core integrity fell below 50% 3598 | -8/Materials | Core integrity fell below 20% 3625 | -8/Materials | Destroyed 8 combat bots 3632 | -8/Materials | Lost 12 parts (1p3n4u4w) 3816 | -8/Materials | Destroyed by G-47 Trooper with Particle Gun Last Messages --------------- 03717_ Kicked A-02 Transporter out of the way. 03730_ Sneak attack on K-01 Serf. 03730_ K-01 Serf destroyed. 03736_ Acquired 6 matter. 03739_ Acquired 12 matter. 03745_ Sneak attack on R-06 Scavenger. 03745_ Destroyed Lgt. Ion Engine. 03785_ C-30 ARC bursts open, deploying its payload. 03785_ G-50 Soldier unfolds itself. 03785_ G-47 Trooper unfolds itself. 03792_ G-47 Trooper destroyed. 03792_ K-01 Serf collects debris. 03797_ G-47 Trooper destroyed. 03800_ K-01 Serf collects debris. 03804_ G-50 Soldier destroyed. 03805_ K-01 Serf collects debris. 03813_ Destroyed Particle Gun. 03813_ K-01 Serf cleans the Nuclear Reactor. [Achievement: First Step to Greatness] [Achievement: Achiever] Map ----- +----------------------------------------------------+ | ?????????????????????????????????????????????????? | | ?????????????????????????????????????????????????? | | ?????????????????????????????????????????????????? | | ?????????????????????????????????????????????????? | | ?????????????????????????????????????????????????? | | ?????????????????????????????????????????????????? | | ?????????????????????????????????????????????????? | | ???????????????????????????????????????????? ??? | | ???????????????????????????????????????????? #? | | ???????????????????????????????????????????? #? | | ???????????????????????????????????????????? #? | | ?????????????o??????#+?????????????????????? #? | | ????????????????????# #########????????????? #? | | ????????????????????# ## #????????????? #?? | | ????????????????????# ## T #????????????# #?? | | ????????????????????# ## #?????######## #?? | | ????????????????????# ## #?????# [[ + #?? | | ????????????????????# ## #?#####[*[!! # ##? | | ???????????????????## ## [#?# " !!! / ## | | ???????????????????# ##+########""" [! ! # | | ???????????????????# k += # " | | ???????????????????# %#######"""# # !" | | ???????????????????# *#?????## ######### # | | ??????????????????## ##g##########???# #* [+ " | | ??????????????????# #%*% #??????# #[= # " | | ??????????????##### #@""" #??????### # " | | ??????????????#![% [/g""" #???????# # | | ??????????????#%### #k""" #???????## ### | | ??????????????#%#?# #! [ #????????## ##? | | ??????????????#*#####+###########????????## ##? | | ??????????????# # [! #??????????????# # ##? | | ??????????????#!# = [! #??????????????## ##? | | ??????????????#=#! [ #???????????????# ##? | | ??????????????#=# ] #???????????????## ##? | | ??????????????#%###########????????????????# ##? | | ??????????????#=# ?????????????????# #?? | | ???????##?????#*# """??????????????????# #?? | | ???#### #????## # """"???????????????#### #?? | | ??? #????# # """""?????????????##T## ### | | ??""" #????# + """""??????######## | | ?"""" #????# # """ #?????# """ # | | """" #????# # ! #?????# """ # | | [ ###### # #?????# """ + ###+### | | """" # ###########?????# # # ? | | """ # #???????????????# # #""" # | | """ + "##+#####?????????????# # #""" # | | #"%# #?????????????############""" # | | # # "# """ #????????????????????????# # | | " % % " #????????????????????????#""" # | | % = "! *=! #?????????????????????????""" # | +----------------------------------------------------+ Best States ------------- Heat Dissipation 45 Energy Generation 14 Energy Capacity 250 Matter Stores 300 Matter Capacity 300 Sight Range 16 Robot Scan Range 16 Terrain Scan Density 10 Armor Coverage 600 Evasion (%) 40 Targeting Accuracy 6 Recoil Reduction 3 Item Schematics ----------------- Hcp. Storage Unit | -10/Materials | Hacked Med. Storage Unit | -10/Materials | Hacked Robot Schematics ------------------ None Fabricated ------------ Nothing Alien Tech Used ----------------- None Achievements -------------- Achiever First Step to Greatness Oops Power Corrupts Significant Disruption Troublemaker Unlikely Earthworm Challenges ------------ None Game ------ Seed DiametricDecoyMace Manual? 0 Play Time 00:27:52 Cumulative 3.3 hours Start 2021.08.15 @ 18:56:58 End 2021.08.15 @ 19:27:55 Sessions 1 Manual Loads 0 Difficulty Rogue Special Mode None Game No. 2 Rogue 2 Adventurer 0 Explorer 0 Win Type - Total 0 Types 0/0/0/0/0/0/0/0/0 Lore% 4 Gallery% 12 Achievement% 25 Wizard Run 0 Options --------- ASCII 0 Keyboard 0 Movement Numpad Keybinds 0 Fullscreen 2 Font 18/TerminusBold Map View 76x50 Tactical HUD 1 Map Filters NONE Filters NONE Steam 0 RUN: 8832c368-e128-437b-8b9e-ff09b030fa25